Department Family,Entity,Date,Expense Type,Expense Area,Supplier,Transaction Number,Amount,Description
Ministry of justice,CAFCASS,01/08/2018,Contact Activities-rechargeabl,HQ,Action for Children,1045985,"44,100.00", Separated Parent Information Programmes June 2018-July 2018
Ministry of justice,CAFCASS,22/08/2018,Contact Activities-rechargeabl,HQ,Action for Children,1046885,"30,420.00",Separated Parent Information Programmes Payments July to August
Ministry of justice,CAFCASS,01/08/2018,Agency Practitioners,Op Service Areas,Community Resourcing t/a Retinue Solutio,1045963,"34,084.80",Agency Staff
Ministry of justice,CAFCASS,01/08/2018,Agency Practitioners,HQ,Community Resourcing t/a Retinue Solutio,1045963,"14,396.95",Agency Staff
Ministry of justice,CAFCASS,01/08/2018,Agency Practitioners,Op Service Areas,Community Resourcing t/a Retinue Solutio,1045964,"54,947.92",Agency Staff
Ministry of justice,CAFCASS,01/08/2018,Agency Practitioners,HQ,Community Resourcing t/a Retinue Solutio,1045964,"11,477.40",Agency Staff
Ministry of justice,CAFCASS,06/08/2018,Agency Practitioners,Op Service Areas,Community Resourcing t/a Retinue Solutio,1046283,"42,871.08",Agency Staff
Ministry of justice,CAFCASS,06/08/2018,Agency Practitioners,HQ,Community Resourcing t/a Retinue Solutio,1046283,"9,705.74",Agency Staff
Ministry of justice,CAFCASS,28/08/2018,Agency Practitioners,Op Service Areas,Community Resourcing t/a Retinue Solutio,1047045,"31,961.74",Agency Staff
Ministry of justice,CAFCASS,28/08/2018,Agency Practitioners,HQ,Community Resourcing t/a Retinue Solutio,1047045,"14,012.43",Agency Staff
Ministry of justice,CAFCASS,28/08/2018,Agency Practitioners,Op Service Areas,Community Resourcing t/a Retinue Solutio,1047047,"39,215.12",Agency Staff
Ministry of justice,CAFCASS,28/08/2018,Agency Practitioners,HQ,Community Resourcing t/a Retinue Solutio,1047047,"7,302.47",Agency Staff
Ministry of justice,CAFCASS,29/08/2018,Agency Practitioners,Op Service Areas,Community Resourcing t/a Retinue Solutio,1047147,"39,204.70",Agency Staff
Ministry of justice,CAFCASS,29/08/2018,Agency Practitioners,HQ,Community Resourcing t/a Retinue Solutio,1047147,"15,433.81",Agency Staff
Ministry of justice,CAFCASS,01/08/2018,Contact Activities-rechargeabl,HQ,Family Action,1046083,"49,595.00",Separated Parent Information Programmes Payments June 2018
Ministry of justice,CAFCASS,22/08/2018,Contact Activities-rechargeabl,HQ,Family Action,1046889,"45,955.00",Separated Parent Information Programmes Payments July 2018
Ministry of justice,CAFCASS,09/08/2018,Other Fees/Services,HQ,Home Office,1046384,"80,267.00",PNC (police computer) Charges 2018/19
Ministry of justice,CAFCASS,09/08/2018,Other Fees/Services,HQ,Home Office,1046384,"44,686.80",SIS (Police computer) Charges 2018/19
Ministry of justice,CAFCASS,09/08/2018,Other IT contracted costs,HQ,Little Fish (UK) Limited,1046416,"398,641.08",Technology services
Ministry of justice,CAFCASS,13/08/2018,Little Fish contracted costs,HQ,Little Fish (UK) Limited,1046484,"145,280.88",Technology services
Ministry of justice,CAFCASS,01/08/2018,Telecommunications Equipment <,HQ,Macquarie Corp & Asset Finance 1 Ltd,1045971,"41,828.52",iphone installment 26/06/2018
Ministry of justice,CAFCASS,01/08/2018,Telecommunications Equipment <,HQ,Macquarie Corp & Asset Finance 1 Ltd,1045972,"41,828.52",iphone installment 26/07/2018
Ministry of justice,CAFCASS,28/08/2018,Telecommunications Equipment <,HQ,Macquarie Corp & Asset Finance 1 Ltd,1047088,"41,828.52",iphone installment 26/08/2018
Ministry of justice,CAFCASS,14/08/2018,Travel and Subs - UK (Non-Taxa,Op Service Areas,Redfern Travel Limited,1046382,"31,312.54",Redfern July 18
Ministry of justice,CAFCASS,14/08/2018,Travel and Subs - UK (Non-Taxa,Op Service Areas,Redfern Travel Limited,1046382,"8,511.02",Redfern hotel July 18
Ministry of justice,CAFCASS,14/08/2018,Travel and Subs - UK (Non-Taxa,HQ,Redfern Travel Limited,1046382,"9,676.55",Redfern hotel July 18
Ministry of justice,CAFCASS,14/08/2018,Travel and Subs - UK (Non-Taxa,HQ,Redfern Travel Limited,1046382,"23,803.74",Redfern July 18
Ministry of justice,CAFCASS,09/08/2018,N-Cnt Computer Services and Ma,HQ,Softcat Plc,1046377,"120,000.00",Technology services
Ministry of justice,CAFCASS,01/08/2018,Contact Activities-rechargeabl,HQ,Spurgeons Child Care,1046092,"31,020.00",Separated Parent Information Programmes Payments June 2018
Ministry of justice,CAFCASS,22/08/2018,Contact Activities-rechargeabl,HQ,Spurgeons Child Care,1046898,"31,680.00",Separated Parent Information Programmes Payments July to August
Ministry of justice,CAFCASS,07/08/2018,Rent,HQ,University of Warwick Science Park,1046326,"34,370.00",National Business Centre Rent 01/08/18 - 31/08/18
Ministry of justice,CAFCASS,07/08/2018,Service Charge,HQ,University of Warwick Science Park,1046326,"3,573.12",National Business Centre Serv Chg 01/08/18 - 31/08/18
Ministry of justice,CAFCASS,08/08/2018,Mobile Call Charges,HQ,Vodafone,1046375,"10,413.32",Vodafone Call charge Jun 18
Ministry of justice,CAFCASS,08/08/2018,Mobile Phone Rental,HQ,Vodafone,1046375,"26,569.27",Vodafone Line Rental Jul 18
